bitfinex/quotes_SOLUSD_20230702
["timestamp","ask_amount","ask_price","bid_price","bid_amount"]
[1688312709777,22.007,19.221,19.214,22.014]
[1688312710005,22.01,19.219,19.214,22.014]
[1688312710188,22.01,19.219,19.212,22.016]
[1688312710594,22.007,19.221,19.212,78.699]
[1688312711197,97.3885,19.226,19.212,78.699]
[1688312711198,154.0325,19.226,19.212,78.699]
[1688312711497,22.007,19.221,19.206,56.7]
[1688312711701,55.0,19.22,19.212,22.017]
[1688312711906,77.009,19.22,19.212,22.017]
[1688312712192,22.009,19.22,19.212,22.017]
[1688312712401,22.007,19.222,19.212,22.017]
[1688312714282,22.004,19.224,19.212,22.017]
[1688312714592,20.0,19.223,19.213,55.0]
[1688312714801,20.0,19.223,19.216,22.012]
[1688312715291,21.999,19.228,19.221,22.006]
[1688312716485,21.997,19.23,19.221,22.006]
[1688312716885,56.607,19.238,19.221,22.006]
[1688312717103,21.995,19.231,19.221,22.006]
[1688312717314,181.944,19.231,19.221,22.006]
[1688312717692,78.622,19.231,19.221,22.006]
[1688312718089,55.0,19.23,19.221,22.006]
[1688312718292,21.996,19.231,19.221,22.006]
[1688312718804,21.995,19.231,19.221,22.006]
[1688312718991,21.995,19.232,19.221,22.006]
[1688312720117,56.611,19.236,19.221,22.006]
[1688312720409,21.991,19.235,19.221,125.382]
[1688312721001,20.0,19.234,19.221,125.382]
[1688312721314,21.996,19.231,19.221,125.382]
[1688312721807,21.991,19.238,19.221,125.382]
[1688312721999,20.0,19.237,19.221,125.382]
[1688312722394,21.993,19.234,19.221,22.006]
[1688312722594,21.997,19.23,19.221,22.006]
[1688312723211,21.995,19.232,19.221,125.382]
[1688312723395,21.995,19.232,19.221,22.006]
[1688312724395,207.48,19.252,19.221,22.006]
[1688312724396,78.996,19.238,19.221,22.006]
[1688312724602,21.994,19.232,19.225,22.002]
[1688312724806,21.993,19.233,19.225,22.002]
[1688312725022,20.0,19.232,19.225,22.002]
[1688312725399,56.609,19.237,19.225,22.002]
[1688312725601,20.0,19.236,19.225,22.002]
[1688312726511,21.993,19.234,19.225,22.002]
[1688312726709,20.0,19.233,19.225,22.002]
[1688312726897,21.994,19.232,19.225,22.002]
[1688312727705,55.0,19.231,19.22,22.007]
[1688312728011,21.999,19.228,19.22,22.007]
[1688312728693,20.0,19.233,19.22,22.007]
[1688312728888,20.0,19.233,19.22,125.388]
[1688312729707,20.0,19.236,19.22,125.388]
[1688312730010,20.0,19.236,19.225,78.645]
[1688312730011,21.993,19.233,19.225,78.645]
[1688312730211,20.0,19.232,19.225,78.645]
[1688312730590,20.0,19.232,19.224,22.002]
[1688312730809,41.994,19.232,19.219,56.66]
[1688312731398,55.0,19.231,19.219,56.66]
[1688312731595,21.999,19.228,19.222,22.005]
[1688312731807,21.999,19.228,19.219,22.008]
[1688312732107,22.006,19.222,19.214,22.015]
[1688312732495,22.009,19.219,19.214,22.015]
[1688312732912,22.009,19.219,19.213,22.016]
[1688312733099,22.009,19.219,19.204,56.706]
[1688312733309,22.015,19.214,19.208,22.02]
[1688312733491,22.018,19.212,19.207,22.022]
[1688312734812,56.669,19.217,19.205,56.703]
[1688312734997,22.017,19.212,19.205,22.024]
[1688312735408,22.017,19.212,19.201,22.029]
[1688312735621,22.017,19.212,19.197,56.726]
[1688312736112,22.022,19.208,19.202,22.028]
[1688312736295,22.02,19.21,19.202,22.028]
[1688312737526,22.018,19.212,19.202,125.506]
[1688312737720,22.018,19.211,19.202,22.028]
[1688312738019,56.67,19.217,19.202,125.506]
[1688312738207,22.016,19.213,19.202,125.506]
[1688312738397,42.018,19.212,19.202,125.506]
[1688312738600,42.018,19.212,19.202,22.028]
[1688312739519,145.442,19.212,19.201,22.029]
[1688312739726,145.442,19.212,19.198,22.032]
[1688312739904,22.45,19.21,19.195,22.036]
[1688312740213,22.45,19.21,19.184,95.7065]
[1688312740214,182.184,19.206,19.193,22.039]
[1688312740421,78.743,19.202,19.193,22.039]
[1688312740622,22.032,19.199,19.193,22.039]
[1688312740925,22.032,19.199,19.191,22.04]
[1688312742014,56.712,19.203,19.191,22.04]
[1688312742015,22.028,19.203,19.191,22.04]
[1688312742201,20.0,19.202,19.191,22.04]
[1688312743128,42.029,19.202,19.191,22.04]
[1688312744117,22.59,19.2,19.17,42.59]
[1688312744323,78.786,19.191,19.171,50.0]
[1688312744527,78.786,19.191,19.176,22.057]
[1688312744827,55.0,19.19,19.176,22.057]
[1688312745027,22.046,19.188,19.176,22.057]
[1688312745227,97.9922,19.192,19.176,22.057]
[1688312745530,22.043,19.19,19.176,22.057]
[1688312745814,22.041,19.192,19.176,22.057]
[1688312746020,20.0,19.191,19.176,22.057]
[1688312746318,42.041,19.191,19.176,22.057]
[1688312747026,55.0,19.19,19.176,22.057]
[1688312747204,22.047,19.186,19.176,22.057]
[1688312747403,22.05,19.183,19.176,22.057]
[1688312747631,55.0,19.19,19.176,22.057]
[1688312748111,22.046,19.188,19.176,22.057]
[1688312748313,22.049,19.184,19.176,22.057]
[1688312748513,55.0,19.183,19.176,22.057]
[1688312748815,22.049,19.184,19.176,22.057]
[1688312749017,22.048,19.186,19.176,22.057]
[1688312749322,22.047,19.186,19.176,22.057]
[1688312749521,20.0,19.191,19.176,22.057]
[1688312750027,20.0,19.192,19.177,55.0]
[1688312750208,22.041,19.192,19.181,182.414]
[1688312750402,20.0,19.191,19.181,182.414]
[1688312750604,22.042,19.191,19.181,182.414]
[1688312750923,22.042,19.191,19.181,22.052]
[1688312752025,55.0,19.19,19.181,22.052]
[1688312752232,22.044,19.189,19.181,22.052]
[1688312752618,133.46,19.196,19.181,22.052]
[1688312752931,20.0,19.195,19.181,22.052]
[1688312753133,22.033,19.198,19.181,22.052]
[1688312753314,22.034,19.197,19.181,21.552]
[1688312753837,22.034,19.197,19.182,55.0]
[1688312754126,22.034,19.197,19.186,78.804]
[1688312756033,77.036,19.196,19.186,78.804]
[1688312756430,56.712,19.202,19.186,78.804]
[1688312756618,20.0,19.201,19.186,78.804]
[1688312756820,22.031,19.2,19.186,78.804]
[1688312757339,42.03,19.201,19.191,78.785]
[1688312757633,20.0,19.201,19.191,78.785]
[1688312757832,20.0,19.203,19.191,78.785]
[1688312758337,20.0,19.205,19.191,78.785]
[1688312759031,22.03,19.201,19.191,78.785]
[1688312759238,22.032,19.199,19.191,78.785]
[1688312759414,22.031,19.2,19.191,78.785]
[1688312759619,96.3504,19.206,19.196,78.764]
[1688312760937,118.3744,19.206,19.196,78.764]
[1688312761431,193.74742902,19.22,19.196,78.764]
[1688312761432,3.0,19.238,19.2,11.22]
[1688312761621,3.0,19.238,19.211,22.018]
[1688312761622,78.64,19.227,19.211,22.018]
[1688312761933,22.0,19.227,19.211,125.448]
[1688312762317,26.70205956,19.238,19.203,3.0]
[1688312762318,21.993,19.233,19.219,182.053]
[1688312762517,21.993,19.233,19.219,22.008]
[1688312762737,21.993,19.233,19.217,22.011]
[1688312763036,11.33,19.23,19.2,11.22]
[1688312763218,315.619,19.235,19.202,56.711]
[1688312763219,11.33,19.22,19.202,56.711]
[1688312763423,11.33,19.22,19.201,103.483]
[1688312763424,22.014,19.215,19.201,56.714]
[1688312763725,125.422,19.215,19.203,22.026]
[1688312763930,22.018,19.211,19.203,22.026]
[1688312764327,22.017,19.213,19.203,78.735]
[1688312764538,75.0,19.212,19.203,78.735]
[1688312764736,97.017,19.212,19.203,78.735]
[1688312765048,97.017,19.212,19.203,22.026]
[1688312765423,97.017,19.212,19.192,56.74]
[1688312765737,97.017,19.212,19.195,22.035]
[1688312765738,78.732,19.204,19.195,22.035]
[1688312765927,20.0,19.203,19.189,56.749]
[1688312766126,22.032,19.199,19.193,22.038]
[1688312766523,22.035,19.197,19.193,22.038]
[1688312766730,55.0,19.196,19.193,22.038]
[1688312766925,20.0,19.195,19.186,56.757]
[1688312767121,22.038,19.194,19.19,22.042]
[1688312767320,20.0,19.195,19.185,22.047]
[1688312767321,75.0,19.193,19.185,22.047]
[1688312767526,97.039,19.193,19.185,22.047]
[1688312768719,75.0,19.193,19.185,22.047]
[1688312768925,20.0,19.193,19.185,22.047]
[1688312769130,20.0,19.194,19.185,22.047]
[1688312769434,20.0,19.196,19.185,22.047]
[1688312769752,76.719,19.199,19.185,22.047]
[1688312770443,55.0,19.198,19.185,22.047]
[1688312770619,20.0,19.197,19.185,22.047]
[1688312770820,55.0,19.196,19.185,22.047]
[1688312771024,20.0,19.195,19.185,22.047]
[1688312771234,55.0,19.194,19.185,22.047]
[1688312771439,20.0,19.193,19.185,22.047]
[1688312771826,22.04,19.192,19.185,22.047]
[1688312772025,97.042,19.191,19.185,22.047]
[1688312772346,77.042,19.191,19.185,22.047]
[1688312773639,20.0,19.193,19.185,22.047]
[1688312773826,55.0,19.192,19.185,22.047]
[1688312774023,20.0,19.191,19.185,22.047]
[1688312776241,115.0711,19.198,19.185,22.047]
[1688312776434,22.033,19.198,19.185,22.047]
[1688312776639,22.033,19.198,19.189,22.043]
[1688312778930,55.0,19.197,19.189,22.043]
[1688312779131,77.035,19.197,19.189,22.043]
[1688312779343,22.033,19.199,19.189,22.043]
[1688312779551,55.0,19.198,19.189,22.043]
[1688312779841,77.033,19.198,19.189,22.043]
[1688312780543,55.0,19.198,19.189,22.043]
[1688312780742,97.8558,19.2,19.189,22.043]
[1688312781139,22.026,19.205,19.189,22.043]
[1688312781327,75.0,19.204,19.189,22.043]
[1688312781531,97.026,19.204,19.189,22.043]
[1688312783246,20.0,19.204,19.19,55.0]
[1688312783433,20.0,19.205,19.194,182.292]
[1688312784252,98.3824,19.209,19.194,182.292]
[1688312784556,22.014,19.215,19.195,55.0]
[1688312784760,103.374,19.222,19.195,55.0]
[1688312784761,56.666,19.218,19.201,182.229]
[1688312784928,22.014,19.215,19.201,182.229]
[1688312785436,125.422,19.215,19.201,22.03]
[1688312785855,20.0,19.214,19.201,22.03]
[1688312786159,22.019,19.211,19.201,22.03]
[1688312786354,55.0,19.21,19.201,22.03]
[1688312787253,77.019,19.21,19.201,22.03]
[1688312787957,158.7,19.228,19.201,22.03]
[1688312787958,27.11219631,19.236,19.203,3.0]
[1688312788253,56.634,19.229,19.214,78.692]
[1688312788434,22.003,19.225,19.214,78.692]
[1688312789457,99.5779,19.23,19.214,78.692]
[1688312789954,21.999,19.228,19.214,78.692]
[1688312791958,121.5749,19.23,19.214,78.692]
[1688312792577,132.9049,19.23,19.214,78.692]
[1688312792758,22.001,19.226,19.214,78.692]
[1688312793057,22.004,19.224,19.214,78.692]
[1688312793637,55.0,19.225,19.214,78.692]
[1688312794752,55.0,19.226,19.214,78.692]
[1688312795265,99.5779,19.23,19.219,182.053]
[1688312796153,21.997,19.23,19.219,78.669]
[1688312796853,21.998,19.229,19.219,78.669]
[1688312797036,55.0,19.236,19.22,55.0]
[1688312797240,21.99,19.236,19.227,22.0]
[1688312799149,98.4333,19.241,19.227,22.0]
[1688312799347,21.986,19.24,19.227,22.0]
[1688312800757,33.316,19.24,19.203,3.0]
[1688312800959,33.316,19.24,19.219,22.009]
[1688312800960,78.614,19.233,19.219,22.009]
[1688312801161,21.999,19.229,19.219,22.009]
[1688312801661,21.996,19.231,19.219,22.009]
[1688312802060,55.0,19.23,19.219,22.009]
[1688312802358,180.325,19.23,19.219,22.009]
[1688312802659,180.325,19.23,19.218,22.01]
[1688312803057,76.997,19.23,19.218,22.01]
[1688312803960,55.0,19.23,19.218,22.01]
[1688312804263,55.0,19.231,19.218,22.01]
[1688312804466,21.995,19.231,19.218,22.01]
[1688312804654,51.78,19.259,19.219,75.0]
[1688312804855,51.78,19.259,19.225,181.999]
[1688312804856,121.3015,19.239,19.225,181.999]
[1688312805062,21.985,19.24,19.225,181.999]
[1688312805358,56.577,19.248,19.225,181.999]
[1688312805546,21.982,19.243,19.231,181.944]
[1688312805748,41.983,19.242,19.231,181.944]
[1688312805960,56.543,19.26,19.236,181.893]
[1688312806167,21.966,19.257,19.246,181.801]
[1688312806363,21.964,19.259,19.246,181.801]
[1688312806569,21.964,19.259,19.246,181.802]
[1688312806869,21.964,19.259,19.246,21.978]
[1688312808665,21.964,19.259,19.244,21.98]
[1688312808966,11.28,19.26,19.244,21.98]
[1688312808967,21.971,19.253,19.244,21.98]
[1688312809169,21.974,19.25,19.244,21.98]
[1688312809549,55.0,19.249,19.244,21.98]
[1688312809759,76.976,19.249,19.244,21.98]
[1688312811151,76.976,19.249,19.239,56.602]
[1688312811353,76.976,19.249,19.242,21.982]
[1688312815272,103.183,19.257,19.242,21.982]
[1688312815469,21.971,19.252,19.242,21.982]
[1688312815676,21.968,19.255,19.242,21.982]
[1688312815977,20.0,19.254,19.242,21.982]
[1688312816972,55.0,19.253,19.242,21.982]
[1688312817182,20.0,19.252,19.242,21.982]
[1688312817471,66.0827898,19.259,19.243,55.0]
[1688312817669,21.965,19.258,19.247,181.786]
[1688312818563,21.965,19.258,19.247,21.976]
[1688312818764,20.0,19.257,19.247,21.976]
[1688312818968,21.969,19.254,19.247,21.976]
[1688312819170,75.0,19.253,19.247,21.976]
[1688312819460,21.971,19.252,19.247,21.976]
[1688312819873,21.971,19.252,19.245,21.978]
[1688312820177,21.974,19.25,19.245,21.978]
[1688312820378,55.0,19.249,19.245,21.978]
[1688312820555,76.975,19.249,19.245,21.978]
[1688312820758,9.5367898,19.248,19.22,11.33]
[1688312821062,21.985,19.24,19.228,21.998]
[1688312821564,56.6,19.241,19.228,21.998]
[1688312821565,21.99,19.236,19.228,21.998]
[1688312821768,55.0,19.235,19.228,21.998]
[1688312821965,21.993,19.233,19.228,21.998]
[1688312822279,76.995,19.232,19.227,22.0]
[1688312822482,55.0,19.231,19.224,22.003]
[1688312822659,21.998,19.229,19.215,56.673]
[1688312822976,55.0,19.228,19.219,22.009]
[1688312823283,22.002,19.226,19.219,22.009]
[1688312823481,22.0,19.228,19.219,22.009]
[1688312824179,56.617,19.235,19.219,125.396]
[1688312824484,21.994,19.232,19.22,55.0]
[1688312824657,21.994,19.232,19.223,78.653]
[1688312825485,3.0,19.258,19.224,55.0]
[1688312825663,21.985,19.241,19.234,21.992]
[1688312825863,3.0,19.258,19.234,21.992]
[1688312825864,20.0,19.258,19.234,21.992]
[1688312826169,21.974,19.25,19.234,125.298]
[1688312826484,21.974,19.25,19.239,78.588]
[1688312826790,125.194,19.25,19.237,21.987]
[1688312827463,21.974,19.25,19.237,21.987]
[1688312829058,21.974,19.25,19.238,55.0]
[1688312829262,21.971,19.252,19.243,78.572]
[1688312829487,21.971,19.252,19.243,21.981]
[1688312830582,21.975,19.249,19.243,21.981]
[1688312831076,21.975,19.249,19.242,21.983]
[1688312831270,21.975,19.249,19.243,21.981]
[1688312831985,76.977,19.248,19.243,21.981]
[1688312832179,113.128,19.254,19.243,21.981]
[1688312832486,20.0,19.253,19.243,21.981]
[1688312833294,21.973,19.251,19.243,21.981]
[1688312833972,21.976,19.248,19.243,21.981]
[1688312834869,55.0,19.25,19.243,21.981]
[1688312835081,20.0,19.253,19.243,21.981]
[1688312835273,21.974,19.25,19.243,21.981]
[1688312836079,21.977,19.248,19.243,21.981]
[1688312837794,21.975,19.249,19.243,21.981]
[1688312838091,21.967,19.256,19.243,21.981]
[1688312838388,78.498,19.262,19.249,78.547]
[1688312838582,21.96,19.262,19.249,78.547]
[1688312839177,56.52,19.268,19.249,78.547]
[1688312839493,21.957,19.265,19.25,86.33]
[1688312839692,21.957,19.265,19.254,181.722]
[1688312839988,21.957,19.265,19.246,103.238]
[1688312840175,21.957,19.265,19.24,11.22]
[1688312840176,21.957,19.265,19.254,21.969]
[1688312840377,21.953,19.269,19.26,21.961]
[1688312840973,103.061,19.28,19.261,55.0]
[1688312841190,3.0,19.288,19.26,11.33]
[1688312841191,21.946,19.274,19.26,11.33]
[1688312841490,21.946,19.274,19.263,21.958]
[1688312841693,20.0,19.273,19.263,21.958]
[1688312841985,21.951,19.27,19.263,21.958]
[1688312842291,21.95,19.272,19.263,21.958]
[1688312842670,21.95,19.272,19.262,21.959]
[1688312843183,56.49,19.278,19.263,55.0]
[1688312843386,20.0,19.277,19.267,21.954]
[1688312843699,21.949,19.272,19.265,21.956]
[1688312843995,21.949,19.272,19.264,21.956]
[1688312844293,21.949,19.272,19.263,21.958]
[1688312844498,55.0,19.271,19.262,21.959]
[1688312844801,55.0,19.271,19.258,21.964]
[1688312844802,78.47,19.269,19.258,21.964]
[1688312844985,21.956,19.265,19.258,21.964]
[1688312845393,55.0,19.264,19.258,21.964]
[1688312845596,21.96,19.263,19.256,21.966]
[1688312846091,11.33,19.28,19.256,21.966]
[1688312846092,56.511,19.271,19.256,21.966]
[1688312846384,21.951,19.27,19.26,21.961]
[1688312848381,21.951,19.27,19.252,56.563]
[1688312848994,55.0,19.269,19.252,56.563]
[1688312849185,21.956,19.266,19.258,21.964]
[1688312849896,21.954,19.268,19.258,21.964]
[1688312850085,200.3891,19.276,19.258,21.964]
[1688312850287,200.3891,19.276,19.259,55.0]
[1688312850288,20.0,19.275,19.259,55.0]
[1688312850491,21.951,19.27,19.264,21.957]
[1688312851778,21.949,19.272,19.264,21.957]
[1688312852498,20.0,19.275,19.264,21.957]
[1688312852686,167.7222,19.279,19.264,21.957]
[1688312853097,21.948,19.273,19.264,21.957]
[1688312853402,21.951,19.27,19.264,21.957]
[1688312854297,20.0,19.272,19.264,21.957]
[1688312854504,41.951,19.278,19.264,21.957]
[1688312854680,21.946,19.275,19.264,21.957]
[1688312855005,41.951,19.278,19.264,21.957]
[1688312855006,21.948,19.273,19.264,21.957]
[1688312855185,41.949,19.272,19.264,21.957]
[1688312855482,21.949,19.272,19.264,21.957]
[1688312855888,21.952,19.269,19.264,21.957]
[1688312856797,20.0,19.274,19.264,21.957]
[1688312856997,21.949,19.272,19.264,21.957]
[1688312857601,55.0,19.271,19.264,21.957]
[1688312857792,21.952,19.27,19.264,21.957]
[1688312857996,20.0,19.276,19.264,21.957]
[1688312858292,21.945,19.275,19.264,21.957]
[1688312858499,20.0,19.277,19.264,21.957]
[1688312858500,21.948,19.273,19.264,21.957]
[1688312858888,20.0,19.272,19.264,21.957]
[1688312859101,56.493,19.277,19.264,21.957]
[1688312859604,78.433,19.28,19.264,21.957]
[1688312859782,56.485,19.28,19.264,21.957]
[1688312859987,21.944,19.277,19.264,21.957]
[1688312860403,55.0,19.276,19.264,21.957]
[1688312860703,21.948,19.273,19.264,21.957]
[1688312862308,103.052,19.282,19.264,21.957]
[1688312862492,21.943,19.277,19.272,21.948]
[1688312863906,21.943,19.277,19.27,21.95]
[1688312864108,21.943,19.277,19.269,21.952]
[1688312864290,55.0,19.276,19.269,21.952]
[1688312864493,21.946,19.274,19.269,21.952]
[1688312864800,55.0,19.273,19.269,21.952]
[1688312867295,76.948,19.273,19.268,21.953]
[1688312867497,20.0,19.272,19.266,21.954]
[1688312867802,21.95,19.271,19.266,21.954]
[1688312867997,76.952,19.27,19.266,21.954]
[1688312868807,41.949,19.272,19.266,21.954]
[1688312868993,55.0,19.271,19.266,21.954]
[1688312869200,20.0,19.272,19.266,21.954]
[1688312869504,21.949,19.272,19.266,21.954]
[1688312870998,55.0,19.271,19.266,21.954]
[1688312871200,21.951,19.27,19.264,21.956]
[1688312871493,55.0,19.269,19.264,21.956]
[1688312871698,21.954,19.268,19.264,21.956]
[1688312872119,27.11219631,19.307,19.264,56.53]
[1688312872411,27.11219631,19.307,19.276,181.52]
[1688312872412,3.0,19.307,19.276,181.52]
[1688312872594,27.112197,19.294,19.286,78.396]
[1688312872799,396.8,19.309,19.286,78.396]
[1688312873710,90.6432,19.308,19.286,78.396]
[1688312873913,20.0,19.307,19.286,78.396]
[1688312874409,178.7,19.308,19.286,21.931]
[1688312874611,22.41,19.3,19.286,21.931]
[1688312874915,55.0,19.299,19.284,21.934]
[1688312875417,55.0,19.299,19.282,21.936]
[1688312875816,11.21,19.29,19.27,56.511]
[1688312876021,55.0,19.289,19.269,103.116]
[1688312876317,166.5382,19.289,19.269,103.116]
[1688312876495,221.5382,19.289,19.275,21.945]
[1688312877101,221.5382,19.289,19.267,103.125]
[1688312877393,221.5382,19.289,19.268,56.516]
[1688312878315,221.5382,19.289,19.268,78.468]
[1688312882116,166.5382,19.289,19.268,78.468]
[1688312882642,71.95219631,19.32,19.27,11.15]
[1688312882803,71.95219631,19.32,19.279,181.491]
[1688312882804,94.6677,19.297,19.279,181.491]
[1688312883123,94.6677,19.297,19.28,75.0]
[1688312883302,94.6677,19.297,19.285,181.434]
[1688312883614,116.5817,19.303,19.285,181.434]
[1688312883821,20.0,19.302,19.286,55.0]
[1688312884017,20.0,19.302,19.291,181.377]
[1688312884222,41.909,19.308,19.291,181.377]
[1688312884406,20.0,19.308,19.291,181.377]
[1688312884610,114.6677,19.309,19.291,181.377]
[1688312885220,21.909,19.307,19.291,181.377]
[1688312885424,20.0,19.306,19.291,181.377]
[1688312885599,94.6677,19.309,19.291,181.377]
[1688312885805,96.8184,19.312,19.292,55.0]
[1688312886006,20.0,19.308,19.298,181.313]
[1688312886318,20.0,19.309,19.298,181.313]
[1688312886628,21.905,19.311,19.298,181.313]
[1688312886919,56.376,19.317,19.298,181.313]
[1688312887119,21.903,19.312,19.298,181.313]
[1688312887913,21.902,19.313,19.298,181.313]
[1688312888219,21.901,19.314,19.303,181.261]
[1688312888720,96.8184,19.318,19.303,181.261]
[1688312889027,21.897,19.318,19.303,181.261]
[1688312889524,20.0,19.317,19.303,181.261]
[1688312889826,21.902,19.313,19.303,181.261]
[1688312890005,20.0,19.312,19.303,181.261]
[1688312890403,21.897,19.317,19.309,78.303]
[1688312890634,21.897,19.317,19.309,21.906]
[1688312891322,21.897,19.317,19.307,21.908]
[1688312891626,102.847,19.32,19.307,21.908]
[1688312891627,21.902,19.314,19.307,21.908]
[1688312891813,21.905,19.31,19.29,11.13]
[1688312892012,21.905,19.31,19.306,21.909]
[1688312892414,21.905,19.31,19.3,56.422]
[1688312892724,21.904,19.311,19.306,21.91]
[1688312892912,76.905,19.31,19.306,21.91]
[1688312893111,76.905,19.31,19.305,21.911]
[1688312893306,20.74134,19.314,19.301,102.948]
[1688312893523,26.04390903,19.323,19.314,181.162]
[1688312894323,21.885,19.328,19.314,181.162]
[1688312894516,21.885,19.328,19.315,55.0]
[1688312894722,21.885,19.328,19.314,181.162]
[1688312895229,26.043909,19.332,19.314,181.162]
[1688312895411,56.329,19.333,19.314,181.162]
[1688312895610,78.224,19.329,19.314,78.284]
[1688312896324,21.884,19.329,19.314,181.162]
[1688312897309,47.925909,19.331,19.314,181.162]
[1688312897509,21.882,19.331,19.315,55.0]
[1688312897831,21.882,19.331,19.319,181.108]
[1688312899031,21.88,19.332,19.32,19.82]
[1688312899217,21.88,19.332,19.324,21.889]
[1688312900422,55.0,19.331,19.324,21.889]
[1688312900627,56.321,19.336,19.324,21.889]
[1688312900930,21.88,19.333,19.324,21.889]
[1688312901131,21.874,19.338,19.324,21.889]
[1688312901520,97.5195,19.339,19.324,32.72619922]
[1688312901825,97.5195,19.339,19.325,10.83719922]
[1688312902128,21.873,19.339,19.329,78.222]
[1688312902333,35.49940221,19.349,19.329,78.222]
[1688312902334,96.5224,19.346,19.329,78.222]
[1688312902629,20.0,19.345,19.329,78.222]
[1688312903218,21.87,19.342,19.329,78.222]
[1688312903914,21.868,19.343,19.329,78.222]
[1688312904109,20.0,19.342,19.329,78.222]
[1688312905717,21.871,19.341,19.329,78.222]
[1688312906227,21.875,19.337,19.329,78.222]
[1688312906533,20.0,19.342,19.329,78.222]
[1688312906534,21.873,19.339,19.329,78.222]
[1688312907116,55.0,19.338,19.329,78.222]
[1688312907415,21.875,19.337,19.329,21.883]
[1688312907739,21.878,19.335,19.329,21.883]
[1688312908119,21.877,19.335,19.324,56.354]
[1688312908433,21.881,19.331,19.327,21.885]
[1688312908638,55.0,19.33,19.326,21.887]
[1688312908817,76.883,19.33,19.326,21.887]
[1688312909321,21.881,19.332,19.326,21.887]
[1688312909630,55.0,19.331,19.326,21.887]
[1688312909833,21.881,19.331,19.326,21.887]